bitfinex/quotes_BTCUSD_20240811
["timestamp","ask_amount","ask_price","bid_price","bid_amount"]
[1723353990050,0.00831,61086.0,61072.0,2.46604201]
[1723353990293,0.083531,61076.0,61072.0,1.91323068]
[1723353990481,0.083531,61076.0,61072.0,1.60635047]
[1723353990749,0.083531,61076.0,61072.0,1.581853]
[1723353990958,0.083531,61076.0,61072.0,1.5818544]
[1723353991177,0.083531,61076.0,61072.0,1.4649438]
[1723353991585,0.083531,61076.0,61072.0,1.50899738]
[1723353991917,0.083531,61076.0,61072.0,1.52299738]
[1723353992346,0.083531,61076.0,61072.0,1.53699738]
[1723353992663,0.083531,61076.0,61072.0,1.60900376]
[1723353993064,0.083531,61076.0,61072.0,1.22113149]
[1723353993296,0.083531,61076.0,61072.0,1.59499599]
[1723353993973,0.083531,61076.0,61072.0,1.58099599]
[1723353994153,0.083531,61076.0,61072.0,1.59499599]
[1723353994340,0.083531,61076.0,61072.0,1.60899599]
[1723353994539,0.083531,61076.0,61072.0,1.59499599]
[1723353995107,0.083531,61076.0,61072.0,1.60899599]
[1723353995531,0.083531,61076.0,61072.0,1.60897836]
[1723353995936,0.083531,61076.0,61072.0,1.55998961]
[1723353996148,0.083531,61076.0,61072.0,1.55999037]
[1723353996595,0.083531,61076.0,61072.0,1.60898052]
[1723353996801,0.083531,61076.0,61072.0,1.60898125]
[1723353997001,0.083531,61076.0,61072.0,1.5599911]
[1723353998025,0.083531,61076.0,61072.0,1.55999091]
[1723354000247,0.083531,61076.0,61072.0,1.18612511]
[1723354000494,0.083531,61076.0,61072.0,1.55999263]
[1723354000826,0.083531,61076.0,61072.0,1.55999247]
[1723354001404,0.083531,61076.0,61072.0,1.60898262]
[1723354001875,0.083531,61076.0,61072.0,1.55999247]
[1723354002113,0.000831,61076.0,61072.0,2.11968463]
[1723354002313,0.000831,61076.0,61072.0,2.11968162]
[1723354003329,0.000831,61076.0,61072.0,2.16714156]
[1723354003688,0.000831,61076.0,61072.0,2.09368162]
[1723354003890,0.000831,61076.0,61072.0,1.71338778]
[1723354004194,0.000831,61076.0,61072.0,2.16694089]
[1723354004803,0.000831,61076.0,61072.0,2.09348286]
[1723354005003,0.000831,61076.0,61072.0,2.18093869]
[1723354005212,0.000831,61076.0,61072.0,2.18093929]
[1723354005639,0.000831,61076.0,61072.0,2.16693929]
[1723354005823,0.000831,61076.0,61072.0,2.18093929]
[1723354006380,0.000831,61076.0,61072.0,2.10748346]
[1723354006784,0.000831,61076.0,61072.0,2.20542315]
[1723354007676,0.000831,61076.0,61072.0,2.20551954]
[1723354008126,0.000831,61076.0,61072.0,2.10757985]
[1723354008330,0.000831,61076.0,61072.0,2.11757985]
[1723354008692,0.000831,61076.0,61072.0,2.21551954]
[1723354009130,0.000831,61076.0,61072.0,2.19102376]
[1723354009564,0.000831,61076.0,61072.0,2.19102363]
[1723354009708,0.144731,61076.0,61072.0,2.03892363]
[1723354009919,0.144731,61076.0,61072.0,2.01444621]
[1723354011337,0.144731,61076.0,61072.0,1.96547985]
[1723354011561,0.144731,61076.0,61072.0,2.01444968]
[1723354011905,0.144731,61076.0,61072.0,2.01445887]
[1723354013869,0.144731,61076.0,61072.0,1.78522187]
[1723354014104,0.144731,61076.0,61072.0,1.78522984]
[1723354014564,0.144731,61076.0,61072.0,1.96548904]
[1723354014763,0.144731,61076.0,61072.0,1.77656079]
[1723354015049,0.144731,61076.0,61072.0,1.96549805]
[1723354015349,0.144731,61076.0,61072.0,1.73626105]
[1723354017632,0.144731,61076.0,61072.0,1.96549805]
[1723354017829,0.144731,61076.0,61072.0,2.01447585]
[1723354018593,0.144731,61076.0,61072.0,1.96603335]
[1723354019176,0.144731,61076.0,61072.0,2.03950005]
[1723354020923,0.144731,61076.0,61072.0,2.04150005]
[1723354021338,0.144731,61076.0,61072.0,1.96803335]
[1723354021550,0.144731,61076.0,61072.0,2.04153114]
[1723354022915,0.144731,61076.0,61072.0,1.49086222]
[1723354023534,0.144731,61076.0,61072.0,1.80365048]
[1723354024145,0.144731,61076.0,61072.0,1.9735874]
[1723354025676,0.144731,61076.0,61072.0,1.80365048]
[1723354025875,0.144731,61076.0,61072.0,1.81365048]
[1723354026057,0.000831,61076.0,61072.0,1.94725048]
[1723354026256,0.000831,61076.0,61072.0,1.98619079]
[1723354027345,0.000831,61076.0,61072.0,1.83937733]
[1723354027558,0.000831,61076.0,61072.0,1.77140268]
[1723354027730,0.000831,61076.0,61072.0,2.08399292]
[1723354028522,0.000831,61076.0,61072.0,2.07199292]
[1723354028721,0.1422,61074.0,61072.0,1.92839292]
[1723354030310,0.1422,61074.0,61072.0,1.83039277]
[1723354030564,0.1422,61074.0,61072.0,1.76159277]
[1723354030747,0.1422,61074.0,61072.0,1.83039277]
[1723354031304,0.1422,61074.0,61072.0,2.12282875]
[1723354032158,0.1422,61074.0,61072.0,2.12255663]
[1723354034688,0.1422,61074.0,61072.0,2.00005644]
[1723354035227,0.1422,61074.0,61072.0,2.06803075]
[1723354035861,0.1422,61074.0,61072.0,1.96559033]
[1723354036072,0.1422,61074.0,61072.0,1.96570365]
[1723354036224,0.000831,61076.0,61072.0,2.10930365]
[1723354036427,0.000831,61076.0,61072.0,2.21374404]
[1723354037258,0.000831,61076.0,61072.0,2.19974404]
[1723354037862,0.000831,61076.0,61072.0,2.21374404]
[1723354038280,0.000831,61076.0,61072.0,2.36074427]
[1723354038449,0.000831,61076.0,61072.0,2.21374404]
[1723354038879,0.000831,61076.0,61072.0,2.19974404]
[1723354039078,0.000831,61076.0,61072.0,2.22374404]
[1723354039278,0.000831,61076.0,61072.0,2.21374404]
[1723354039485,0.000831,61076.0,61072.0,1.73137681]
[1723354039805,0.000831,61076.0,61072.0,2.21354656]
[1723354039986,0.000831,61076.0,61072.0,1.6634025]
[1723354040165,0.000831,61076.0,61072.0,2.38345942]
[1723354042605,0.000831,61076.0,61072.0,2.39345942]
[1723354043297,0.000831,61076.0,61072.0,2.39359896]
[1723354046279,0.000831,61076.0,61072.0,2.38359896]
[1723354048914,0.000831,61076.0,61072.0,2.21367114]
[1723354050655,0.000831,61076.0,61072.0,2.21382227]
[1723354051006,0.000831,61076.0,61072.0,2.19982227]
[1723354051570,0.000831,61076.0,61072.0,2.21382227]
[1723354051797,0.000831,61076.0,61072.0,2.18582227]
[1723354052135,0.000831,61076.0,61072.0,2.37064004]
[1723354052359,0.000831,61076.0,61072.0,2.35664004]
[1723354052565,0.000831,61076.0,61072.0,2.3328225]
[1723354052815,0.000831,61076.0,61072.0,2.3468225]
[1723354052998,0.000831,61076.0,61072.0,2.3608225]
[1723354054111,0.000831,61076.0,61072.0,2.36082159]
[1723354055346,0.000831,61076.0,61072.0,2.38063426]
[1723354055791,0.000831,61076.0,61075.0,0.58324619]
[1723354055971,0.000831,61076.0,61075.0,1.98474636]
[1723354056518,0.000831,61076.0,61075.0,2.44319836]
[1723354057752,0.000831,61076.0,61075.0,2.44257739]
[1723354057989,0.000831,61076.0,61075.0,2.45657739]
[1723354058320,0.000831,61076.0,61075.0,2.47057739]
[1723354061393,0.000831,61076.0,61075.0,2.30060844]
[1723354061752,0.00831,61086.0,61085.0,1.03152719]
[1723354061960,0.00831,61086.0,61085.0,1.86486577]
[1723354062153,0.00831,61086.0,61085.0,1.93685563]
[1723354062561,0.00831,61086.0,61085.0,2.03476492]
[1723354062956,0.00831,61086.0,61085.0,1.96596492]
[1723354063160,0.08991,61086.0,61085.0,2.03476492]
[1723354063389,0.08991,61086.0,61085.0,2.03445861]
[1723354063991,0.08991,61086.0,61085.0,2.04845861]
[1723354064410,0.08991,61086.0,61085.0,2.03442901]
[1723354064553,0.08991,61086.0,61085.0,2.04842901]
[1723354064773,0.08991,61086.0,61085.0,2.06242901]
[1723354064976,0.08991,61086.0,61085.0,1.5130218]
[1723354065181,0.08991,61086.0,61085.0,2.04830058]
[1723354065545,0.08991,61086.0,61085.0,1.96442089]
[1723354066108,0.08991,61086.0,61085.0,2.04830058]
[1723354066423,0.08991,61086.0,61085.0,1.95042089]
[1723354066622,0.08991,61086.0,61085.0,1.96442089]
[1723354066797,0.08991,61086.0,61085.0,1.95995716]
[1723354066963,0.00831,61086.0,61085.0,2.04731476]
[1723354067171,0.00831,61086.0,61085.0,2.11965716]
[1723354067372,0.00831,61086.0,61085.0,2.19300374]
[1723354067607,0.00831,61086.0,61085.0,2.04730374]
[1723354067811,0.00831,61086.0,61085.0,1.97395716]
[1723354068638,0.00831,61086.0,61085.0,1.49263665]
[1723354068795,0.00831,61086.0,61085.0,1.97391932]
[1723354069202,0.00831,61086.0,61085.0,2.04726008]
[1723354069681,0.00831,61086.0,61085.0,2.38359473]
[1723354069909,0.00831,61086.0,61085.0,2.40804159]
[1723354070269,0.00831,61086.0,61085.0,2.28580732]
[1723354070469,0.00831,61086.0,61085.0,2.29380732]
[1723354070927,0.00831,61086.0,61085.0,2.40204159]
[1723354071447,0.00831,61086.0,61085.0,2.46704159]
[1723354071659,0.00831,61086.0,61085.0,2.45304159]
[1723354071868,0.0001,61089.0,61088.0,1.34145419]
[1723354072078,0.0001,61089.0,61088.0,2.45541064]
[1723354072323,0.0001,61089.0,61088.0,1.97412743]
[1723354072527,0.0001,61089.0,61088.0,2.4448169]
[1723354072764,0.00831,61093.0,61092.0,1.29057219]
[1723354072968,0.00831,61093.0,61092.0,2.44241856]
[1723354073299,0.00831,61093.0,61092.0,2.32033137]
[1723354074051,0.00831,61093.0,61092.0,2.12085414]
[1723354074203,0.00831,61093.0,61092.0,2.03309937]
[1723354074402,0.00831,61093.0,61092.0,1.94945666]
[1723354075019,0.00831,61093.0,61092.0,1.96345666]
[1723354075604,0.00831,61093.0,61092.0,2.03266218]
[1723354075785,0.00831,61093.0,61092.0,2.03666218]
[1723354075959,0.00831,61093.0,61092.0,2.03666382]
[1723354076163,0.00831,61093.0,61092.0,1.87193157]
[1723354076365,0.00831,61093.0,61092.0,1.85793157]
[1723354076524,0.00831,61093.0,61092.0,1.87193157]
[1723354077144,0.00831,61093.0,61092.0,1.79313157]
[1723354077343,0.00831,61093.0,61092.0,1.78872605]
[1723354077759,0.00831,61093.0,61092.0,1.79866077]
[1723354077982,0.00831,61093.0,61092.0,1.84745183]
[1723354078431,0.00831,61093.0,61092.0,1.79866077]
[1723354078880,0.00831,61093.0,61092.0,1.84744652]
[1723354079504,0.00831,61093.0,61092.0,1.84744882]
[1723354080109,0.00831,61093.0,61092.0,1.77950278]
[1723354080305,0.00831,61093.0,61092.0,1.8474491]
[1723354081434,0.00831,61093.0,61092.0,2.02201155]
[1723354081593,0.00831,61093.0,61092.0,2.02200347]
[1723354081753,0.00831,61093.0,61092.0,1.71154893]
[1723354081962,0.00831,61093.0,61092.0,2.02202296]
[1723354082774,0.00831,61093.0,61092.0,1.64360261]
[1723354083044,0.00831,61093.0,61092.0,2.0220733]
[1723354083731,0.00831,61093.0,61092.0,2.0971733]
[1723354086448,0.00831,61093.0,61092.0,2.0320733]
[1723354087535,0.00831,61093.0,61092.0,2.0220733]
[1723354088907,0.00831,61093.0,61092.0,2.02207222]
[1723354089573,0.00831,61093.0,61092.0,2.02197684]
[1723354090862,0.00831,61093.0,61092.0,1.97319917]
[1723354091468,0.07361,61093.0,61092.0,1.97319917]
[1723354092241,0.00831,61093.0,61092.0,1.97319917]
[1723354093317,0.00831,61093.0,61092.0,2.0220154]
[1723354093682,0.00831,61093.0,61092.0,2.0220094]
[1723354095298,0.00831,61093.0,61092.0,1.9540737]
[1723354095499,0.00831,61093.0,61092.0,2.02202]
[1723354096311,0.00831,61093.0,61092.0,1.97326009]
[1723354097287,0.00831,61093.0,61092.0,2.04639996]
[1723354099332,0.00831,61093.0,61092.0,1.97326009]
[1723354099539,0.00831,61093.0,61092.0,2.07565795]
[1723354099906,0.00831,61093.0,61092.0,2.02207972]
[1723354100530,0.00831,61093.0,61092.0,1.47377946]
[1723354100813,0.00831,61093.0,61092.0,2.022118]
[1723354102360,0.00831,61093.0,61092.0,1.97329837]
[1723354103266,0.00831,61093.0,61092.0,2.04652782]
[1723354103714,0.00831,61093.0,61092.0,1.97329837]
[1723354104283,0.00831,61093.0,61092.0,1.7360174]
[1723354104429,0.00831,61093.0,61092.0,1.87672136]
[1723354104628,0.00831,61093.0,61092.0,2.0465986]
[1723354104838,0.00831,61093.0,61092.0,2.04654878]
[1723354105395,0.00831,61093.0,61092.0,2.00692394]
[1723354105602,0.00831,61093.0,61092.0,2.07572394]
[1723354106151,0.00831,61093.0,61092.0,2.14903715]
[1723354106317,0.00831,61093.0,61092.0,2.07572394]
[1723354106515,0.00831,61093.0,61092.0,2.17324377]
[1723354106917,0.00831,61093.0,61092.0,2.07572394]
[1723354107434,0.00831,61093.0,61092.0,2.17324377]
[1723354107859,0.00831,61093.0,61092.0,2.07572461]
[1723354108224,0.00831,61093.0,61092.0,2.17324444]
[1723354109597,0.00831,61093.0,61092.0,2.07111025]
[1723354109808,0.00831,61093.0,61092.0,2.04666669]
[1723354111235,0.00831,61093.0,61092.0,1.97332]
[1723354112341,0.00831,61093.0,61092.0,2.07111025]
[1723354115294,0.00831,61093.0,61092.0,1.66279555]
[1723354115539,0.00831,61093.0,61092.0,1.97347795]
[1723354115835,0.00831,61093.0,61092.0,1.42495983]
[1723354116047,0.00831,61093.0,61092.0,1.97349859]
[1723354119116,0.00831,61093.0,61092.0,1.97356325]
[1723354122703,0.00831,61093.0,61092.0,1.92601224]
[1723354122875,0.00831,61093.0,61092.0,2.09589425]
[1723354124039,0.00831,61093.0,61092.0,2.09588024]
[1723354124273,0.00831,61093.0,61092.0,2.09586974]
[1723354126274,0.00831,61093.0,61092.0,1.54729186]
[1723354126452,0.00831,61093.0,61092.0,2.09586606]
[1723354128465,0.00831,61093.0,61092.0,2.09585015]
[1723354129990,0.00831,61093.0,61092.0,1.9259672]
[1723354130187,0.00831,61093.0,61092.0,2.09584861]
[1723354130815,0.08511,61093.0,61092.0,2.02704861]
[1723354131016,0.14861,61093.0,61092.0,2.09584861]
[1723354131195,0.14861,61093.0,61092.0,2.07139177]
[1723354131642,0.14861,61093.0,61092.0,2.07138969]
[1723354131821,0.14861,61093.0,61092.0,2.04693289]
[1723354132023,0.14861,61093.0,61092.0,1.49836231]
[1723354132223,0.14861,61093.0,61092.0,2.04705515]
[1723354133533,0.14861,61093.0,61092.0,1.73620723]
[1723354133711,0.14861,61093.0,61092.0,2.04708256]
[1723354137221,0.14861,61093.0,61092.0,1.80926845]
[1723354137353,0.14861,61093.0,61092.0,1.97371106]
[1723354137559,0.00831,61093.0,61092.0,1.97371106]
[1723354138561,0.00831,61093.0,61092.0,1.97371094]
[1723354138969,0.00831,61093.0,61092.0,2.0715842]
[1723354139180,0.00831,61093.0,61092.0,1.97371094]
[1723354140342,0.00831,61093.0,61092.0,2.07158411]
[1723354140684,0.00831,61093.0,61092.0,1.97371094]
[1723354140884,0.15321,61093.0,61092.0,1.5219905]
[1723354141132,0.15321,61093.0,61092.0,2.07149924]
[1723354143725,0.15321,61093.0,61092.0,2.07158039]
[1723354144482,0.15321,61093.0,61092.0,1.97370374]
[1723354145048,0.08931,61093.0,61092.0,1.97370374]
[1723354145658,0.00831,61093.0,61092.0,2.09604532]
[1723354145987,0.00831,61093.0,61092.0,2.09611045]
[1723354147357,0.00831,61093.0,61092.0,2.09610987]
[1723354147584,0.00831,61093.0,61092.0,2.09604658]
[1723354147802,0.00831,61093.0,61092.0,1.97364045]
[1723354148051,0.00831,61093.0,61092.0,1.73580328]
[1723354148245,0.00831,61093.0,61092.0,1.97364022]
[1723354149159,0.00831,61093.0,61092.0,1.66279675]
[1723354149362,0.00831,61093.0,61092.0,1.97361944]
[1723354151222,0.00831,61093.0,61092.0,1.97360301]
[1723354151623,0.00831,61093.0,61092.0,1.80372005]
[1723354151830,0.00831,61093.0,61092.0,1.97360301]
[1723354152240,0.08931,61093.0,61092.0,1.97360301]
[1723354152586,0.00831,61093.0,61092.0,1.97360301]
[1723354152792,0.00831,61093.0,61092.0,2.07601124]
[1723354154897,0.00831,61093.0,61092.0,1.97351667]
[1723354155270,0.00831,61093.0,61092.0,2.09593547]
[1723354155470,0.00831,61093.0,61092.0,1.97351667]
[1723354155694,0.00831,61093.0,61092.0,2.09593959]
[1723354155892,0.00831,61093.0,61092.0,1.97351667]
[1723354156310,0.00831,61093.0,61092.0,2.09593932]
[1723354156513,0.00831,61093.0,61092.0,1.97351667]
[1723354157196,0.15321,61093.0,61092.0,2.09594038]
[1723354158267,0.15321,61093.0,61092.0,1.54738354]
[1723354158472,0.15321,61093.0,61092.0,2.09614375]
[1723354158893,0.15321,61093.0,61092.0,2.09613799]
[1723354159945,0.15321,61093.0,61092.0,2.09615867]
[1723354160151,0.15321,61093.0,61092.0,2.02820575]
[1723354160345,0.15321,61093.0,61092.0,2.09616035]
[1723354162103,0.15321,61093.0,61092.0,2.09624301]
[1723354163215,0.00831,61093.0,61092.0,2.09624301]
[1723354163354,0.00831,61093.0,61092.0,1.97379862]
[1723354163762,0.00831,61093.0,61092.0,2.09624301]
[1723354164580,0.00831,61093.0,61092.0,2.09623615]
[1723354165713,0.00831,61093.0,61092.0,2.09625393]
[1723354165918,0.00831,61093.0,61092.0,1.9738164]
[1723354167014,0.00831,61093.0,61092.0,2.09625393]
[1723354169288,0.00831,61093.0,61092.0,1.54739736]
[1723354169505,0.00831,61093.0,61092.0,2.09618978]
[1723354169907,0.00831,61093.0,61092.0,2.23209661]
[1723354170507,0.00831,61093.0,61092.0,2.23205989]
[1723354171103,0.00831,61093.0,61092.0,2.23205999]
[1723354173025,0.00831,61093.0,61092.0,2.23206002]
[1723354174161,0.00831,61093.0,61092.0,2.10962249]
[1723354176768,0.00831,61107.0,61106.0,0.80206619]
[1723354176975,0.00831,61107.0,61106.0,1.29359077]
[1723354177210,0.01499002,61107.0,61106.0,1.53139944]
[1723354177419,0.14681,61107.0,61106.0,1.46345444]
[1723354177592,0.14681,61107.0,61106.0,1.53139823]
[1723354177849,0.14681,61107.0,61106.0,1.70639964]
[1723354178071,0.14681,61107.0,61106.0,1.72039964]
[1723354178466,0.14681,61107.0,61106.0,1.47745444]
[1723354178976,0.14681,61107.0,61106.0,1.49145444]
[1723354179396,0.14681,61107.0,61106.0,1.32159077]
[1723354179999,0.14681,61107.0,61106.0,1.18568111]
[1723354180234,0.14681,61107.0,61106.0,1.32156856]
[1723354180650,0.14681,61107.0,61106.0,1.32156855]
[1723354181450,0.14681,61107.0,61106.0,1.30756855]
[1723354181991,0.14681,61107.0,61106.0,1.29356855]
[1723354182201,0.14681,61107.0,61106.0,1.30756855]
[1723354182401,0.14681,61107.0,61106.0,1.29356855]
[1723354182711,0.14681,61107.0,61106.0,1.22476855]
[1723354183124,0.14681,61107.0,61106.0,1.30756855]
[1723354183328,0.14681,61107.0,61106.0,1.32156855]
[1723354183536,0.00831,61107.0,61106.0,1.30756855]
[1723354183947,0.00831,61107.0,61106.0,1.32156855]
[1723354187434,0.00831,61107.0,61106.0,1.32156826]
[1723354187847,0.00831,61107.0,61106.0,1.25276826]
[1723354188062,0.00831,61107.0,61106.0,1.32156826]
[1723354188893,0.08331,61107.0,61106.0,1.32156826]
[1723354189523,0.14651,61107.0,61106.0,1.32156826]
[1723354191089,0.14651,61107.0,61106.0,1.32157182]
[1723354191623,0.14651,61107.0,61106.0,1.32157119]
[1723354193956,0.14651,61107.0,61106.0,1.25277119]
[1723354194156,0.14651,61107.0,61106.0,1.32157119]
[1723354194847,0.14651,61107.0,61106.0,1.32157576]
[1723354198551,0.14651,61107.0,61106.0,1.32157487]
[1723354200577,0.14651,61107.0,61106.0,0.50773995]
[1723354200788,0.14651,61107.0,61106.0,0.73684995]
[1723354201185,0.14651,61107.0,61106.0,0.66975619]
[1723354201388,0.14651,61107.0,61106.0,0.80565672]
[1723354202040,0.14651,61107.0,61106.0,0.8056561]
[1723354203204,0.14651,61107.0,61106.0,0.80565595]
[1723354206804,0.14651,61107.0,61106.0,1.19858087]
[1723354206945,0.00831,61107.0,61106.0,1.22158087]
[1723354208076,0.08771,61107.0,61106.0,1.22158087]
[1723354208284,0.15241,61107.0,61106.0,1.08568111]
[1723354208490,0.15241,61107.0,61106.0,1.22157629]
[1723354209571,0.15241,61107.0,61106.0,1.2215792]
[1723354209762,0.15241,61107.0,61106.0,0.73685428]
[1723354210534,0.15241,61107.0,61106.0,0.50774428]
[1723354211298,0.15241,61107.0,61106.0,0.73685428]
[1723354211505,0.15241,61107.0,61106.0,0.50774428]
[1723354211707,0.15609975,61107.0,61106.0,0.50774428]
[1723354212355,0.15609975,61107.0,61106.0,0.49374428]
[1723354212700,0.15609975,61107.0,61106.0,0.4937555]
[1723354213034,0.15609975,61107.0,61106.0,0.5077555]
[1723354215629,0.15609975,61107.0,61106.0,0.5077559]
[1723354217103,0.15609975,61107.0,61106.0,0.4937559]
[1723354217523,0.16762219,61107.0,61106.0,0.5077559]
[1723354217917,0.16762219,61107.0,61106.0,0.4937559]
[1723354218348,0.16762219,61107.0,61106.0,0.4907559]
[1723354218691,0.16762219,61107.0,61106.0,0.5047559]
[1723354219077,0.16762219,61107.0,61106.0,0.4907559]
[1723354219229,0.16762219,61107.0,61106.0,0.36884619]
[1723354219436,0.16762219,61107.0,61106.0,0.50475365]
[1723354223300,0.16762219,61107.0,61106.0,0.36884619]
[1723354223501,0.16762219,61107.0,61106.0,0.50475305]
[1723354224149,0.16762219,61107.0,61106.0,0.50475301]
[1723354226453,0.16762219,61107.0,61106.0,0.73386301]
[1723354226651,0.15609975,61107.0,61106.0,0.50475301]
[1723354227487,0.15241,61107.0,61106.0,0.50475301]
[1723354229208,0.15241,61107.0,61106.0,0.73386301]
[1723354229544,0.15241,61107.0,61106.0,0.50475301]
[1723354230190,0.15241,61107.0,61106.0,0.50474664]
[1723354233999,0.15241,61107.0,61106.0,0.50474937]
[1723354235590,0.15241,61107.0,61106.0,0.36884619]
[1723354235865,0.15241,61107.0,61106.0,0.50474937]
[1723354237297,1.006069,61107.0,61106.0,0.16090318]
[1723354237499,0.574869,61107.0,61106.0,0.025]
[1723354237755,1.14279231,61107.0,61106.0,0.025]
[1723354237902,1.04460012,61107.0,61106.0,0.025]
[1723354238503,0.81549412,61107.0,61106.0,0.014]
[1723354238715,0.1525,61100.0,61099.0,0.00018119]
[1723354238895,0.31983835,61100.0,61099.0,0.00018119]
[1723354239391,0.27075575,61100.0,61099.0,0.00018119]
[1723354240768,0.01,61097.0,61096.0,0.00018119]
[1723354240903,0.27076075,61097.0,61096.0,0.00018119]
[1723354241293,0.16098179,61097.0,61096.0,0.00018119]
[1723354241984,0.16098179,61097.0,61096.0,0.00918119]
[1723354242188,0.27555279,61097.0,61096.0,0.02018119]
[1723354243226,0.16098179,61097.0,61096.0,0.01118119]
[1723354243430,0.26555279,61097.0,61096.0,0.01118119]
[1723354244028,0.26555279,61097.0,61096.0,0.01918119]
[1723354244385,0.15098179,61097.0,61096.0,0.01918119]
[1723354244592,0.27555279,61097.0,61096.0,0.019]
[1723354244814,0.26555279,61097.0,61096.0,0.01918119]
[1723354245024,0.26555279,61097.0,61096.0,0.019]
[1723354245485,0.27555279,61097.0,61096.0,0.019]
[1723354245621,0.26555279,61097.0,61096.0,0.01918119]
[1723354245968,0.15098179,61097.0,61096.0,0.01918119]
[1723354247588,0.08948179,61097.0,61096.0,0.01918119]
[1723354249184,0.09031279,61097.0,61096.0,0.01918119]
[1723354250845,0.09707529,61097.0,61096.0,0.01918119]
[1723354258125,0.01607529,61097.0,61096.0,0.13375419]
[1723354258975,0.01607529,61097.0,61096.0,0.01918119]
[1723354259199,0.09637529,61097.0,61096.0,0.01918119]
[1723354261309,0.09637529,61097.0,61096.0,0.13375419]
[1723354266286,0.01607529,61097.0,61096.0,0.27735419]
[1723354266487,0.01607529,61097.0,61096.0,0.41328753]
[1723354266701,0.01607529,61097.0,61096.0,0.41328731]
[1723354266899,0.01607529,61097.0,61096.0,0.50650119]
[1723354267117,0.01607529,61097.0,61096.0,0.64243379]
[1723354267557,0.01238554,61097.0,61096.0,0.64243379]
[1723354268477,0.000831,61097.0,61096.0,0.64243379]
[1723354268704,0.000831,61097.0,61096.0,0.50650119]
[1723354268916,0.000831,61097.0,61096.0,0.86357937]
[1723354269107,0.000831,61097.0,61096.0,1.26854129]
[1723354269301,0.000831,61097.0,61096.0,1.04739429]
[1723354269747,0.000831,61097.0,61096.0,0.90346311]
[1723354269894,0.000831,61097.0,61096.0,1.0523897]
[1723354271189,0.000831,61097.0,61096.0,1.0623897]
[1723354273081,0.000831,61097.0,61096.0,1.08322226]
[1723354273713,0.000831,61097.0,61096.0,1.06238599]
[1723354278447,0.000831,61097.0,61096.0,0.92646311]
[1723354278599,0.000831,61097.0,61096.0,1.06238836]
[1723354284909,0.000831,61097.0,61096.0,1.06238908]
[1723354285322,0.000831,61097.0,61096.0,0.50282716]
[1723354285523,0.01607306,61097.0,61096.0,0.50282716]
[1723354286979,0.08147306,61097.0,61096.0,0.02318119]
[1723354287187,0.16227306,61097.0,61096.0,0.02318119]
[1723354290191,0.16227306,61097.0,61096.0,0.13775419]
[1723354291345,0.01607306,61097.0,61096.0,0.13775419]
[1723354291506,0.01607306,61097.0,61096.0,0.27369146]
[1723354291908,0.01238331,61097.0,61096.0,0.73198546]
[1723354292108,0.000831,61097.0,61096.0,0.59604819]
[1723354292312,0.000831,61097.0,61096.0,0.73198015]
[1723354292551,0.000831,61097.0,61096.0,0.50283315]
[1723354292787,0.01238185,61097.0,61096.0,0.50283315]
[1723354292904,0.000831,61097.0,61096.0,0.50283315]
[1723354293104,0.00762473,61097.0,61096.0,0.50283315]
[1723354293353,0.01131448,61097.0,61096.0,0.50283315]
[1723354293532,0.00762473,61097.0,61096.0,0.50283315]
[1723354294316,0.01131448,61097.0,61096.0,0.50283315]
[1723354295156,0.00762473,61097.0,61096.0,0.50283315]
[1723354299039,0.00762473,61097.0,61096.0,0.50300929]
[1723354299646,0.00762473,61097.0,61096.0,0.73215629]
[1723354299851,0.00762473,61097.0,61096.0,0.87575629]
[1723354300075,0.000831,61097.0,61096.0,1.03957121]
[1723354300253,0.000831,61097.0,61096.0,1.06257121]
[1723354300900,0.000831,61097.0,61096.0,1.13137121]
[1723354303974,0.000831,61097.0,61096.0,1.13136369]
[1723354306421,0.000831,61097.0,61096.0,1.13136368]
[1723354307954,0.000831,61097.0,61096.0,0.99543925]
[1723354308161,0.000831,61097.0,61096.0,1.46050793]
[1723354308534,0.000831,61097.0,61096.0,1.87331943]
[1723354309060,0.000831,61097.0,61096.0,1.86031943]
[1723354309410,0.000831,61097.0,61096.0,1.69935378]
[1723354309665,0.000831,61097.0,61096.0,1.68535378]
[1723354309874,0.000831,61097.0,61096.0,1.67535378]
[1723354310053,0.000831,61097.0,61096.0,1.68935378]
[1723354310254,0.000831,61097.0,61096.0,1.68635378]
[1723354310693,0.000831,61097.0,61096.0,1.67535378]
[1723354310865,0.000831,61097.0,61096.0,1.68935378]
[1723354311172,0.000831,61097.0,61096.0,1.70335378]
[1723354311579,0.000831,61097.0,61096.0,1.70334658]
[1723354311879,0.000831,61097.0,61096.0,1.68934658]
[1723354312068,0.000831,61097.0,61096.0,1.48546896]
[1723354312268,0.000831,61097.0,61096.0,1.67532825]
[1723354312469,0.000831,61097.0,61096.0,1.62137516]
[1723354313221,0.000831,61097.0,61096.0,1.63537516]
[1723354313440,0.000831,61097.0,61096.0,1.32958625]
[1723354313621,0.000831,61097.0,61096.0,1.63537511]
[1723354314068,0.000831,61097.0,61096.0,1.62137511]
[1723354314287,0.000831,61097.0,61096.0,1.63537511]
[1723354315889,0.000831,61097.0,61096.0,1.62137511]
[1723354316214,0.000831,61097.0,61096.0,1.63537511]
[1723354317244,0.000831,61097.0,61096.0,1.75224103]
[1723354317843,0.000831,61097.0,61096.0,1.98138803]
[1723354318174,0.000831,61097.0,61096.0,2.16700034]
[1723354318402,0.000831,61097.0,61096.0,2.18100034]
[1723354318601,0.000831,61097.0,61096.0,2.19100034]
[1723354318813,0.000831,61097.0,61096.0,2.17700034]
[1723354319172,0.000831,61097.0,61096.0,2.19081205]
[1723354319371,0.000831,61097.0,61096.0,2.10344529]
[1723354319774,0.000831,61097.0,61096.0,2.08944529]
[1723354319980,0.000831,61097.0,61096.0,2.11744529]
[1723354320175,0.000831,61097.0,61096.0,2.19081205]
[1723354320376,0.000831,61097.0,61096.0,2.10344529]
[1723354320581,0.000831,61097.0,61096.0,2.08944529]
[1723354320979,0.000831,61097.0,61096.0,2.10544529]
[1723354321179,0.000831,61097.0,61096.0,2.11944529]
[1723354321381,0.000831,61097.0,61096.0,2.21718684]
[1723354321584,0.000831,61097.0,61096.0,2.20318684]
[1723354321778,0.000831,61097.0,61096.0,2.03332139]
[1723354321999,0.000831,61097.0,61096.0,2.20339334]
[1723354322445,0.000831,61097.0,61096.0,2.35059651]
[1723354322602,0.000831,61097.0,61096.0,2.32079879]